bitfinex/quotes_SOLUSD_20251223
["timestamp","ask_amount","ask_price","bid_price","bid_amount"]
[1766511036023,0.7,124.21,124.16,22.75362181]
[1766511037119,0.71,124.23,124.17,11.24302046]
[1766511037317,0.71,124.23,124.18,14.7]
[1766511038327,0.71,124.23,124.18,22.75218294]
[1766511039207,0.71,124.23,124.18,42.88424929]
[1766511042329,0.71,124.23,124.18,28.18424929]
[1766511042530,0.71,124.25,124.19,15.50521781]
[1766511044039,8.04669462,124.28,124.2,28.18035426]
[1766511044214,0.71,124.27,124.21,14.7]
[1766511045121,0.71,124.27,124.22,8.05023345]
[1766511045339,0.71,124.27,124.23,14.7]
[1766511046932,0.71,124.29,124.23,25.13767296]
[1766511047134,0.71,124.29,124.24,8.04893754]
[1766511047440,0.71,124.29,124.25,14.7]
[1766511049337,0.71,124.29,124.25,22.74786007]
[1766511049542,0.71,124.31,124.25,22.74786007]
[1766511051046,0.71,124.3,124.25,22.74786007]
[1766511052427,0.71,124.3,124.25,42.86858441]
[1766511053529,9.56569597,124.33,124.25,42.86858441]
[1766511053727,0.71,124.32,124.25,43.67341338]
[1766511058230,0.71,124.31,124.25,8.04786007]
[1766511058430,0.71,124.31,124.26,14.7]
[1766511059353,0.71,124.29,124.26,14.7]
[1766511060371,0.71,124.29,124.23,10.43767296]
[1766511060660,0.71,124.29,124.23,33.18691267]
[1766511061556,0.71,124.28,124.23,33.18691267]
[1766511062245,0.71,124.28,124.23,22.74923971]
[1766511062639,8.04655463,124.28,124.23,23.42923971]
[1766511062946,0.71,124.27,124.23,23.42923971]
[1766511063353,0.71,124.27,124.23,22.74923971]
[1766511063748,0.71,124.27,124.23,14.7]
[1766511064651,0.71,124.27,124.22,8.04994264]
[1766511064860,0.71,124.27,124.22,23.42994264]
[1766511065159,8.04701091,124.27,124.22,23.42994264]
[1766511065452,0.71,124.26,124.17,0.8053475]
[1766511065637,8.04828973,124.25,124.19,8.05217811]
[1766511065830,0.71,124.24,124.19,8.05217811]
[1766511066029,0.71,124.24,124.15,0.80547724]
[1766511066030,0.71,124.22,124.15,35.51680326]
[1766511066456,0.71,124.22,124.16,8.05389959]
[1766511067146,0.71,124.22,124.17,8.05342781]
[1766511068137,0.69,124.21,124.17,8.05342781]
[1766511069742,0.69,124.21,124.16,8.77384438]
[1766511070152,8.05102901,124.21,124.16,8.77384438]
[1766511070345,0.69,124.2,124.13,20.13925055]
[1766511070547,0.69,124.2,124.14,23.47493035]
[1766511070938,0.69,124.2,124.15,8.05465669]
[1766511071534,0.69,124.19,124.15,8.05465669]
[1766511071734,0.69,124.19,124.14,23.47517922]
[1766511073340,0.69,124.18,124.14,14.7]
[1766511075865,0.69,124.18,124.14,23.4753351]
[1766511080473,0.69,124.18,124.14,15.42]
[1766511080669,8.05178809,124.2,124.15,0.72]
[1766511080972,0.69,124.19,124.15,0.72]
[1766511082575,0.69,124.19,124.15,8.77451952]
[1766511084676,0.69,124.19,124.16,0.72]
[1766511086473,8.05100238,124.21,124.16,8.05370427]
[1766511086660,0.69,124.2,124.16,8.77370427]
[1766511089172,11.12767296,124.22,124.16,0.72]
[1766511089349,11.12767296,124.22,124.15,28.19170358]
[1766511089350,0.69,124.22,124.18,0.72]
[1766511089550,11.12767296,124.24,124.18,0.72]
[1766511090174,0.69,124.24,124.18,0.72]
[1766511090371,0.69,124.24,124.19,0.72]
[1766511090579,0.69,124.24,124.2,15.42]
[1766511090756,18.4853167,124.26,124.21,0.72]
[1766511090952,8.0470475,124.27,124.21,0.72]
[1766511091176,8.0470475,124.27,124.2,14.7]
[1766511091177,0.69,124.27,124.22,8.77023345]
[1766511091371,0.69,124.27,124.23,15.42]
[1766511092454,0.69,124.26,124.22,14.7]
[1766511094273,0.69,124.25,124.22,14.7]
[1766511096183,8.04808244,124.26,124.22,15.42]
[1766511096378,0.69,124.25,124.22,15.42]
[1766511096688,0.69,124.25,124.22,14.7]
[1766511097058,0.69,124.27,124.23,0.67]
[1766511097471,0.69,124.27,124.22,23.4199864]
[1766511099684,0.69,124.27,124.22,22.7499864]
[1766511099882,0.69,124.27,124.23,0.67]
[1766511101181,0.69,124.27,124.23,8.719511]
[1766511101888,0.69,124.27,124.23,0.67]
[1766511102291,0.71,124.29,124.24,0.68]
[1766511102469,0.71,124.28,124.24,0.68]
[1766511103593,0.71,124.28,124.24,8.72884021]
[1766511106190,8.04577049,124.29,124.24,0.68]
[1766511106488,0.71,124.28,124.24,0.68]
[1766511106872,0.71,124.28,124.24,8.72885873]
[1766511107072,0.71,124.28,124.24,0.68]
[1766511107267,0.71,124.28,124.24,14.7]
[1766511107268,0.71,124.27,124.24,14.7]
[1766511108293,0.71,124.27,124.23,8.72953457]
[1766511108491,0.71,124.27,124.23,23.42953457]
[1766511111390,0.71,124.26,124.21,19.16813538]
[1766511111594,0.71,124.26,124.21,33.86813538]
[1766511112068,0.71,124.26,124.22,8.05021732]
[1766511112268,0.71,124.26,124.22,8.73021732]
[1766511113590,0.71,124.25,124.21,33.86832128]
[1766511114276,0.71,124.25,124.21,10.43767296]
[1766511114483,0.71,124.25,124.21,25.13767296]
[1766511115293,20.11817467,124.27,124.21,25.13767296]
[1766511115494,0.71,124.26,124.21,25.13767296]
[1766511116402,0.71,124.26,124.21,33.18854999]
[1766511116894,28.16221434,124.28,124.22,0.68]
[1766511117097,0.71,124.27,124.22,0.68]
[1766511117485,0.71,124.27,124.22,8.72967509]
[1766511117686,0.71,124.27,124.23,0.68]
[1766511119982,8.04707338,124.27,124.23,0.68]
[1766511120302,0.71,124.26,124.23,0.68]
[1766511121606,0.71,124.26,124.22,8.72967509]
[1766511125888,0.71,124.26,124.22,23.42967509]
[1766511129921,0.71,124.26,124.23,0.67]
[1766511130415,0.71,124.28,124.23,0.67]
[1766511130809,0.71,124.28,124.22,42.87525873]
[1766511130810,0.71,124.28,124.24,8.71893754]
[1766511131420,0.71,124.28,124.24,8.04893754]
[1766511134007,11.14767296,124.3,124.25,0.67]
[1766511134198,0.71,124.3,124.26,0.67]
[1766511134519,0.71,124.31,124.26,0.67]
[1766511135222,0.71,124.3,124.26,8.71752622]
[1766511135411,0.71,124.3,124.27,0.67]
[1766511135918,0.71,124.3,124.26,8.04752622]
[1766511136130,0.71,124.3,124.25,14.7]
[1766511136911,0.71,124.3,124.25,23.41817899]
[1766511137523,0.71,124.29,124.25,22.74817899]
[1766511137829,0.71,124.29,124.26,0.67]
[1766511138727,0.71,124.29,124.25,23.41817899]
[1766511139720,0.71,124.32,124.26,0.67]
[1766511140521,0.71,124.3,124.23,8.04929163]
[1766511140727,8.04699444,124.27,124.21,8.05088157]
[1766511141037,0.71,124.26,124.21,8.72088157]
[1766511141921,0.71,124.26,124.2,18.48903981]
[1766511142233,0.71,124.26,124.2,22.751454]
[1766511142712,0.71,124.26,124.2,23.421454]
[1766511143125,8.04794561,124.26,124.2,23.421454]
[1766511143335,0.71,124.25,124.2,23.421454]
[1766511144321,0.71,124.24,124.2,23.421454]
[1766511145024,0.71,124.24,124.2,15.37]
[1766511145206,0.71,124.24,124.2,23.42139346]
[1766511149508,8.75913099,124.24,124.2,15.37]
[1766511149810,0.71,124.24,124.2,15.37]
[1766511150011,0.71,124.24,124.2,23.42146875]
[1766511150407,0.69,124.23,124.16,10.43767296]
[1766511150607,0.69,124.23,124.18,8.0524485]
[1766511150821,0.69,124.23,124.19,0.68]
[1766511152504,8.04968473,124.23,124.19,0.68]
[1766511152705,0.69,124.22,124.19,0.68]
[1766511155557,0.69,124.22,124.19,8.73207727]
[1766511155852,0.69,124.22,124.19,0.68]
[1766511157554,8.86080763,124.25,124.19,8.05197992]
[1766511157729,0.66,124.24,124.2,0.67]
[1766511157928,0.66,124.24,124.19,8.05197992]
[1766511157929,0.66,124.25,124.21,15.37]
[1766511158650,8.70857594,124.25,124.21,15.37]
[1766511158852,0.66,124.24,124.21,14.7]
[1766511159741,0.66,124.25,124.21,15.37]
[1766511161562,19.99727069,124.27,124.22,0.72]
[1766511161855,0.7,124.27,124.23,0.72]
[1766511165155,0.7,124.27,124.23,8.76942075]
[1766511165458,0.7,124.27,124.23,8.04942075]
[1766511165958,0.7,124.27,124.23,8.76942075]
[1766511166152,0.7,124.27,124.23,8.04942075]
[1766511166334,0.7,124.27,124.23,8.76942075]
[1766511166535,0.7,124.27,124.24,0.72]
[1766511167740,0.7,124.27,124.25,2.94876625]
[1766511168635,11.25009172,124.3,124.26,2.94876625]
[1766511168948,0.7,124.29,124.26,2.94876625]
[1766511170457,0.7,124.29,124.24,23.4686054]
[1766511170675,0.7,124.28,124.26,2.94876625]
[1766511175839,0.7,124.28,124.27,2.94876625]
[1766511176040,0.7,124.28,124.25,0.72]
[1766511176368,0.7,124.28,124.26,2.94876625]
[1766511177366,0.7,124.28,124.25,8.76820801]
[1766511177660,0.7,124.28,124.26,2.94876625]
[1766511180768,10.43767296,124.3,124.26,2.94876625]
[1766511181062,0.7,124.33,124.29,2.94876625]
[1766511181270,0.7,124.33,124.32,2.94876625]
[1766511181940,0.7,124.33,124.31,2.94876625]
[1766511182337,0.7,124.33,124.29,0.72]
[1766511182764,0.7,124.32,124.3,2.94876625]
[1766511183870,0.7,124.32,124.29,0.72]
[1766511183871,0.7,124.32,124.31,2.94876625]
[1766511187146,0.7,124.32,124.3,2.94876625]
[1766511187342,11.29767296,124.35,124.32,0.66]
[1766511187543,11.29767296,124.35,124.32,3.60876625]
[1766511187855,11.29767296,124.35,124.31,0.66]
[1766511188046,11.29767296,124.35,124.33,2.94876625]
[1766511188562,0.66,124.34,124.32,2.94876625]
[1766511188751,0.66,124.34,124.31,0.66]
[1766511189051,0.66,124.34,124.32,2.94876625]
[1766511190846,18.67960481,124.35,124.33,3.60876625]
[1766511191376,19.33960481,124.35,124.33,2.94876625]
[1766511192779,11.29767296,124.35,124.33,2.94876625]
[1766511194078,8.0414624,124.36,124.31,22.72431937]
[1766511194079,0.86,124.38,124.35,0.66]
[1766511194275,0.86,124.38,124.36,2.94876625]
[1766511195278,0.86,124.38,124.35,2.94876625]
[1766511195279,0.66,124.37,124.35,2.94876625]
[1766511196588,0.66,124.36,124.31,23.383819]
[1766511196770,0.66,124.36,124.33,2.94876625]
[1766511198163,0.66,124.36,124.32,8.70363307]
[1766511198164,0.66,124.35,124.31,23.38414682]
[1766511198479,0.66,124.35,124.33,2.94876625]
[1766511199863,0.66,124.35,124.32,0.66]
[1766511200063,0.66,124.35,124.33,2.94876625]
[1766511200982,0.66,124.35,124.32,3.60876625]
[1766511204191,0.66,124.35,124.33,2.94876625]
[1766511205391,0.66,124.35,124.31,8.04414682]
[1766511205589,0.66,124.34,124.3,2.94876625]
[1766511205780,0.66,124.34,124.29,15.34]
[1766511205968,0.66,124.33,124.3,2.94876625]
[1766511206373,0.66,124.33,124.31,2.94876625]
[1766511206897,8.04210182,124.35,124.31,2.94876625]
[1766511207188,0.66,124.35,124.32,2.94876625]
[1766511211090,0.66,124.35,124.31,8.7040505]
[1766511211293,0.66,124.35,124.32,2.94876625]
[1766511212273,8.04118575,124.36,124.33,3.60876625]
[1766511212474,0.66,124.36,124.34,2.94876625]
[1766511213372,0.66,124.36,124.33,3.60876625]
[1766511213581,8.24002691,124.38,124.34,2.94876625]
[1766511213787,8.24002691,124.38,124.35,2.94876625]
[1766511213983,0.66,124.37,124.34,2.54413129]
[1766511215294,8.70094382,124.37,124.34,1.88413129]
[1766511215598,8.70094382,124.37,124.33,2.54413129]
[1766511215789,8.70094382,124.37,124.32,22.72336256]
[1766511215790,0.66,124.36,124.32,1.88413129]
[1766511216672,0.66,124.36,124.33,1.88413129]
[1766511219691,0.66,124.36,124.33,2.58413129]
[1766511220592,0.67,124.35,124.28,8.71599474]
[1766511220900,0.67,124.33,124.29,2.55413129]
[1766511222079,8.71317844,124.33,124.29,2.55413129]
[1766511222388,8.04317844,124.33,124.27,18.48454781]
[1766511222602,0.67,124.32,124.28,2.55413129]
[1766511222800,0.67,124.32,124.29,0.67]
[1766511223185,0.67,124.32,124.28,0.67]
[1766511223391,0.67,124.32,124.28,2.55413129]
[1766511223992,8.0438972,124.32,124.28,2.55413129]
[1766511224194,0.67,124.31,124.28,2.55413129]
[1766511224776,0.67,124.31,124.28,10.6004503]
[1766511225600,0.67,124.32,124.29,1.88413129]
[1766511225898,0.67,124.32,124.28,10.6004503]
[1766511226896,0.67,124.31,124.28,2.55413129]
[1766511227393,0.67,124.31,124.28,0.67]
[1766511227571,0.67,124.31,124.27,21.03855715]
[1766511228301,0.67,124.31,124.27,35.71855715]
[1766511228508,0.67,124.31,124.28,2.55413129]
[1766511230312,0.67,124.3,124.27,14.68]
[1766511230493,0.67,124.3,124.27,15.35]
[1766511231182,0.67,124.3,124.27,17.23413129]
[1766511231582,0.67,124.3,124.27,25.28094419]
[1766511233085,2.55413129,124.3,124.26,19.1552471]
[1766511233301,0.67,124.3,124.27,0.67]
[1766511233996,8.04544724,124.3,124.26,11.10767296]
[1766511234187,0.67,124.29,124.26,10.43767296]
[1766511234808,0.67,124.29,124.26,12.99180425]
[1766511235508,0.67,124.29,124.26,21.03933025]
[1766511236024,0.67,124.31,124.27,0.67]
[1766511236204,0.67,124.31,124.27,2.55413129]
[1766511236510,2.55413129,124.31,124.27,0.67]
[1766511236909,0.67,124.31,124.27,10.60079185]
[1766511237288,0.67,124.32,124.28,2.55413129]
[1766511238103,0.67,124.32,124.29,1.88413129]
[1766511238306,0.67,124.32,124.28,10.60003821]
[1766511239615,0.67,124.32,124.28,8.71590692]
[1766511240839,0.67,124.33,124.29,1.88413129]
[1766511241111,11.10767296,124.35,124.31,0.67]
[1766511241413,0.67,124.35,124.31,0.67]
[1766511242025,0.67,124.34,124.29,2.55413129]
[1766511242230,0.67,124.33,124.28,25.28003821]
[1766511242416,0.67,124.32,124.28,23.39590692]
[1766511242591,0.67,124.31,124.28,0.67]
[1766511243205,0.67,124.31,124.27,24.61094188]
[1766511243412,0.67,124.31,124.27,25.28094188]
[1766511243621,0.67,124.31,124.27,24.61094188]
[1766511243815,0.67,124.31,124.28,0.67]
[1766511244504,0.67,124.32,124.28,10.60044605]
[1766511244729,0.67,124.32,124.28,8.71631476]
[1766511246324,0.67,124.32,124.28,10.60044605]
[1766511248827,0.67,124.32,124.28,8.71631476]
[1766511249037,0.67,124.32,124.28,10.60044605]
[1766511249231,0.7,124.31,124.28,0.67]
[1766511250644,0.7,124.31,124.28,8.71631764]
[1766511251236,0.7,124.31,124.28,0.67]
[1766511251439,0.7,124.3,124.26,10.43767296]
[1766511251641,0.7,124.3,124.26,25.11767296]
[1766511251819,0.7,124.29,124.26,25.82767296]
[1766511253241,0.7,124.29,124.26,33.87530949]
[1766511253615,0.7,124.31,124.26,35.04944078]
[1766511253815,0.7,124.31,124.27,1.88413129]
[1766511254131,0.7,124.31,124.28,0.71]
[1766511257152,2.58413129,124.31,124.27,8.75670821]
[1766511257372,0.7,124.31,124.28,0.71]
[1766511257946,0.7,124.31,124.28,8.75634396]
[1766511260230,0.7,124.31,124.28,0.71]
[1766511264765,0.7,124.31,124.27,10.64087733]
[1766511266567,0.7,124.31,124.27,8.75674604]
[1766511266774,0.7,124.31,124.27,10.64087733]
[1766511266953,0.7,124.31,124.28,2.59413129]
[1766511268044,0.7,124.32,124.29,0.71]
[1766511268279,0.7,124.32,124.29,1.88413129]
[1766511268572,0.7,124.32,124.28,1.88413129]
[1766511268957,0.7,124.31,124.28,2.59413129]
[1766511269566,0.7,124.3,124.24,0.71]
[1766511269796,0.7,124.27,124.23,8.04922631]
[1766511269951,0.7,124.26,124.22,2.59413129]
[1766511270266,0.7,124.25,124.21,2.59413129]
[1766511270434,0.7,124.24,124.21,0.71]
[1766511270839,0.7,124.23,124.2,22.75146272]
[1766511271447,0.7,124.23,124.2,23.46146272]
[1766511272243,0.7,124.23,124.2,0.71]
[1766511273975,2.95148996,124.23,124.19,11.00317468]
[1766511274279,0.66,124.19,124.17,0.1]
[1766511274448,3.61148996,124.19,124.17,0.1]
[1766511276350,11.66375817,124.19,124.17,0.1]
[1766511276548,11.66375817,124.19,124.15,0.1]
[1766511276549,0.66,124.17,124.15,0.1]
[1766511276764,3.61148996,124.17,124.15,0.1]
[1766511276956,0.66,124.17,124.15,0.1]
[1766511277372,0.68,124.16,124.15,0.1]
[1766511278161,0.68,124.18,124.15,0.1]
[1766511278352,2.95148996,124.18,124.15,0.1]
[1766511278552,0.68,124.17,124.15,0.1]
[1766511280360,0.68,124.17,124.13,11.78736825]
[1766511280361,0.68,124.16,124.13,0.1]
[1766511280561,0.68,124.14,124.13,0.1]
[1766511280753,3.63148996,124.14,124.1,0.68]
[1766511281167,3.63148996,124.13,124.1,0.68]
[1766511281753,0.68,124.13,124.09,26.48969064]
[1766511283377,0.68,124.13,124.09,23.53820068]
[1766511283566,0.68,124.13,124.09,26.48969064]
[1766511283768,13.38916292,124.14,124.1,2.95148996]
[1766511283970,8.0549433,124.15,124.12,2.95148996]
[1766511283971,0.68,124.15,124.12,2.95148996]
[1766511284169,0.68,124.15,124.11,3.63148996]
[1766511284980,26.38516031,124.17,124.13,3.63148996]
[1766511285187,26.38516031,124.17,124.11,8.05703162]
[1766511285188,0.68,124.17,124.14,3.63148996]
[1766511285682,11.68499309,124.17,124.13,3.63148996]
[1766511287181,0.68,124.17,124.13,11.6870065]
[1766511287694,0.68,124.19,124.15,0.68]
[1766511287977,0.68,124.19,124.15,3.63148996]
[1766511288177,0.68,124.19,124.15,0.68]
[1766511288386,0.68,124.19,124.15,3.63148996]
[1766511288877,0.68,124.19,124.16,2.95148996]
[1766511289084,8.73218752,124.19,124.15,0.68]
[1766511289287,8.73218752,124.19,124.16,2.95148996]
[1766511289792,8.73218752,124.19,124.15,0.68]
[1766511289793,0.68,124.18,124.14,2.95148996]
[1766511289968,11.00367748,124.19,124.12,15.38]
[1766511289969,0.68,124.16,124.12,3.63148996]
[1766511290169,2.95148996,124.13,124.1,0.68]
[1766511290381,3.63148996,124.14,124.1,3.63148996]
[1766511290775,0.68,124.14,124.1,3.63148996]
[1766511291083,0.68,124.14,124.1,8.737861]
[1766511291296,0.68,124.14,124.1,11.68935096]
[1766511292491,0.68,124.14,124.11,2.95148996]
[1766511292702,0.68,124.14,124.1,11.68935096]
[1766511292990,0.68,124.14,124.11,2.95148996]
[1766511296108,8.73545935,124.14,124.11,2.95148996]
[1766511296271,11.68694931,124.14,124.1,3.63148996]
[1766511296477,0.68,124.13,124.1,3.63148996]
[1766511298703,0.68,124.13,124.11,2.95148996]
[1766511299572,0.68,124.13,124.12,2.95148996]
[1766511300298,8.73493469,124.15,124.12,2.95148996]
[1766511300486,0.68,124.15,124.13,2.95148996]
[1766511300682,8.7348061,124.15,124.13,2.95148996]
[1766511300897,19.17247906,124.15,124.13,2.95148996]
[1766511301080,19.17247906,124.15,124.12,0.68]
[1766511301271,11.11767296,124.15,124.13,1.19115904]
[1766511301477,11.11767296,124.15,124.12,0.68]
[1766511301697,11.11767296,124.15,124.13,2.95148996]
[1766511304509,16.29241876,124.18,124.14,3.63148996]
[1766511304736,0.68,124.18,124.15,0.68]
[1766511305002,8.0573514,124.22,124.18,0.68]
[1766511305183,10.43767296,124.22,124.2,2.95148996]
[1766511305392,11.11767296,124.22,124.19,3.63148996]
[1766511305595,19.1684656,124.22,124.19,2.95148996]
[1766511306007,19.1684656,124.22,124.18,2.95148996]
[1766511306008,0.68,124.21,124.18,2.95148996]
[1766511306796,0.68,124.21,124.19,2.95148996]
[1766511308308,0.68,124.21,124.18,0.72]
[1766511308483,0.68,124.21,124.19,2.95148996]
[1766511309100,0.68,124.21,124.2,2.95148996]
[1766511310101,0.68,124.2,124.15,0.72]
[1766511310283,0.68,124.2,124.17,3.67148996]
[1766511312890,0.68,124.2,124.18,2.95148996]
[1766511313791,8.05052191,124.22,124.19,2.95148996]
[1766511313994,0.68,124.21,124.19,2.95148996]
[1766511314706,8.73108137,124.21,124.19,2.95148996]
[1766511315084,8.73108137,124.21,124.17,0.72]
[1766511315280,0.68,124.2,124.17,0.72]
[1766511315595,8.73108137,124.21,124.19,2.95148996]
[1766511316001,8.73108137,124.21,124.18,2.95148996]
[1766511316196,8.73108137,124.21,124.17,0.72]
[1766511316413,0.68,124.2,124.18,2.95148996]
[1766511318789,0.68,124.19,124.17,2.95148996]
[1766511319606,21.62043442,124.21,124.17,3.67148996]
[1766511319810,8.05217811,124.19,124.17,3.67148996]
[1766511320193,8.73217811,124.19,124.17,2.95148996]
[1766511320394,28.86262339,124.19,124.16,0.72]
[1766511320594,28.86262339,124.19,124.17,2.95148996]
[1766511321107,28.86262339,124.19,124.16,0.72]
[1766511321311,28.18262339,124.19,124.16,0.72]
[1766511321486,28.18262339,124.19,124.15,17.65148996]
[1766511321691,20.13044528,124.19,124.17,3.67148996]
[1766511322332,20.81044528,124.19,124.17,2.95148996]
[1766511322716,8.05152979,124.2,124.17,2.95148996]
[1766511323011,8.73152979,124.2,124.17,3.67148996]
[1766511325000,8.73152979,124.2,124.18,2.95148996]
[1766511326012,8.73152979,124.2,124.17,0.72]
[1766511326219,8.73152979,124.2,124.17,3.67148996]
[1766511326412,28.86035426,124.2,124.16,0.72]
[1766511326613,28.86035426,124.2,124.17,2.95148996]
[1766511327121,28.86035426,124.2,124.18,2.95148996]
[1766511327720,8.73152979,124.2,124.18,2.95148996]
[1766511329213,8.73152979,124.2,124.17,3.67148996]
[1766511330322,8.73152979,124.2,124.17,0.72]
[1766511330506,8.73152979,124.2,124.17,3.67148996]
[1766511331814,8.73152979,124.2,124.18,2.95148996]
[1766511333218,8.05152979,124.2,124.14,14.7]
[1766511333406,0.68,124.19,124.14,8.77514832]
[1766511333593,0.68,124.19,124.14,0.72]
[1766511333801,0.68,124.18,124.14,2.95148996]
[1766511333996,20.82307694,124.18,124.14,1.89058869]
[1766511334195,10.43767296,124.17,124.12,15.42]
[1766511334413,0.68,124.15,124.12,1.89058869]
[1766511334722,0.68,124.15,124.1,0.72]
[1766511334723,0.68,124.13,124.09,0.82]
[1766511335206,0.68,124.11,124.09,0.1]
[1766511335407,18.49309425,124.14,124.1,1.89058869]
[1766511335625,8.05975985,124.14,124.11,0.72]
[1766511335799,14.62358729,124.17,124.14,0.72]
[1766511336001,0.68,124.17,124.1,28.20305467]
[1766511336206,11.11767296,124.17,124.1,30.09364336]
[1766511336420,19.17119924,124.17,124.1,30.09364336]
[1766511336613,19.17119924,124.17,124.14,1.89058869]
[1766511337236,1e-08,124.18,124.14,28.19385526]
[1766511337405,0.71,124.22,124.17,1.89058869]
[1766511337725,0.71,124.22,124.2,1.89058869]
[1766511337900,1.89058869,124.21,124.14,8.71530202]
[1766511338107,0.71,124.2,124.16,1.89058869]
[1766511338516,0.71,124.2,124.15,0.66]
[1766511338517,1.89058869,124.17,124.12,2.57058869]
[1766511338718,0.66,124.16,124.13,1.89058869]
[1766511339124,11.09767296,124.17,124.14,1.89058869]
[1766511339717,19.15159273,124.17,124.14,1.89058869]
[1766511340311,19.15159273,124.17,124.13,0.68]
[1766511340513,0.66,124.16,124.13,1.89058869]
[1766511341043,8.7142843,124.16,124.13,1.89058869]
[1766511341206,8.7142843,124.16,124.12,2.57058869]
[1766511343511,8.7142843,124.16,124.13,1.89058869]
[1766511343815,19.15125525,124.17,124.13,0.68]
[1766511344135,19.15125525,124.17,124.14,1.89058869]
[1766511344335,19.15125525,124.17,124.13,2.57058869]
[1766511345832,0.66,124.13,124.09,1.99058869]
[1766511346035,2.55058869,124.13,124.09,0.78]
[1766511346619,0.66,124.12,124.09,0.1]
[1766511347127,8.71736846,124.11,124.09,0.1]
[1766511347719,0.66,124.11,124.09,0.1]
[1766511348823,2.55058869,124.1,124.09,1e-08]
[1766511349019,8.71801772,124.1,124.09,1e-08]
[1766511350442,0.66,124.1,124.09,1e-08]
[1766511352033,0.66,124.09,124.08,1e-08]
[1766511353331,8.71866709,124.09,124.08,1e-08]
[1766511353729,0.66,124.09,124.08,1e-08]
[1766511355349,8.71866709,124.09,124.08,1e-08]
[1766511357047,22.75837874,124.1,124.08,1e-08]
[1766511357248,8.05837874,124.1,124.08,1e-08]
[1766511357446,8.71866709,124.09,124.08,1e-08]
[1766511359062,0.66,124.09,124.08,1e-08]
[1766511359361,23.43831324,124.1,124.08,1e-08]
[1766511359546,0.66,124.1,124.08,1e-08]
[1766511359746,8.71759351,124.11,124.08,2.5705887]
[1766511359929,23.43759351,124.11,124.08,1.8905887]
[1766511360747,23.43759351,124.11,124.08,2.5705887]
[1766511360949,22.77759351,124.11,124.08,2.5705887]
[1766511361152,11.09767296,124.13,124.09,1.89058869]
[1766511361356,25.81767296,124.13,124.09,2.57058869]
[1766511361574,24.19452397,124.16,124.12,1.89058869]
[1766511361853,33.87244541,124.15,124.11,0.68]
[1766511362023,33.87244541,124.15,124.11,2.57058869]
[1766511362226,33.87244541,124.15,124.11,1.89058869]
[1766511362425,33.87244541,124.15,124.11,2.57058869]
[1766511363748,33.87244541,124.15,124.12,2.57058869]
[1766511364059,10.43767296,124.15,124.12,2.57058869]
[1766511364569,10.43767296,124.15,124.13,1.89058869]
[1766511364735,8.71320221,124.18,124.15,0.68]
[1766511365071,19.15087517,124.18,124.15,2.57058869]
[1766511365229,8.71320221,124.18,124.15,2.57058869]
[1766511366166,0.66,124.16,124.13,1.89058869]
[1766511366336,2.55058869,124.16,124.12,2.57058869]
[1766511366736,0.66,124.16,124.12,2.57058869]
[1766511367160,8.05477245,124.15,124.12,0.68]
[1766511367455,0.72,124.14,124.1,0.7]
[1766511367674,2.61058869,124.14,124.1,2.59058869]
[1766511368042,0.72,124.14,124.1,2.59058869]
[1766511369166,30.08509345,124.14,124.09,1.89058869]
[1766511369354,0.72,124.09,124.08,1e-08]
[1766511369554,2.61058869,124.09,124.08,1e-08]
[1766511369746,0.72,124.09,124.08,1e-08]
[1766511370441,14.72,124.1,124.08,1e-08]